fUST/lending_fUST_20260522
["ID","MTS","AMOUNT","RATE_DAILY","PERIOD"]
[422785150,1779385847000,-2140.44007289,0.0001,2]
[422785152,1779385847000,-250.11331305,0.0001,2]
[422785151,1779385847000,-200.0,0.0001,2]
[422785153,1779385847000,-6151.17374797,0.0001,2]
[422785148,1779385847000,-649.213739,9.998e-05,2]
[422785154,1779385847000,-23432.48682294,0.0001,2]
[422785158,1779385847000,-341.91547409,0.0001,2]
[422785162,1779385847000,-33872.38183908,0.0001,2]
[422785160,1779385847000,-704751.32515769,0.0001,2]
[422785161,1779385847000,-200.0,0.0001,10]
[422785172,1779385847000,-151.0,0.0001,2]
[422785159,1779385847000,-3463.96,0.0001,5]
[422785163,1779385847000,-3356.75304025,0.0001,2]
[422785164,1779385847000,-332.65422629,0.0001,2]
[422785166,1779385847000,-1626.74812694,0.0001,2]
[422785169,1779385847000,-151.0,0.0001,2]
[422785165,1779385847000,-10189.47837696,0.0001,2]
[422785170,1779385847000,-151.0,0.0001,2]
[422785171,1779385847000,-151.0,0.0001,2]
[422785168,1779385847000,-184.32318659,0.0001,2]
[422785212,1779385847000,-12981.36770257,0.0001,2]
[422785200,1779385847000,-400.665554,0.0001,2]
[422785213,1779385847000,-166.824584,0.0001,2]
[422785243,1779385847000,-156.27,0.00010005,2]
[422785242,1779385847000,-156.27,0.00010005,2]
[422785246,1779385847000,-156.27,0.00010007,2]
[422785241,1779385847000,-3896.73075871,0.00010003,2]
[422785245,1779385847000,-156.27,0.00010005,2]
[422785239,1779385847000,-176.692244,0.0001,2]
[422785247,1779385847000,-156.27,0.00010007,2]
[422785244,1779385847000,-156.27,0.00010005,2]
[422785240,1779385847000,-204.627688,0.0001,2]
[422785249,1779385847000,-156.27,0.00010007,2]
[422785252,1779385847000,-156.27,0.00010009,2]
[422785251,1779385847000,-156.27,0.00010009,2]
[422785253,1779385847000,-156.27,0.00010009,2]
[422785248,1779385847000,-156.27,0.00010007,2]
[422785250,1779385847000,-156.27,0.00010009,2]
[422785254,1779385847000,-720.83,0.00010011,2]
[422785256,1779385847000,-595.01,0.00010012,2]
[422785255,1779385847000,-693.4,0.00010011,2]
[422785259,1779385847000,-633.81,0.00010036,2]
[422785257,1779385847000,-606.11,0.00010014,2]
[422785261,1779385847000,-160.0,0.00010038,2]
[422785260,1779385847000,-559.97,0.00010036,2]
[422785262,1779385847000,-1437.662701,0.00010038,2]
[422785263,1779385847000,-2715.325402,0.00010038,2]
[422785264,1779385847000,-582.66,0.00010041,2]
[422785266,1779385847000,-4829.598144,0.00010046,2]
[422785267,1779385847000,-1013.148013,0.00010046,2]
[422785265,1779385847000,-11724.660524,0.00010046,2]
[422785258,1779385847000,-626.55,0.00010018,2]
[422785237,1779385847000,-151.0,0.0001,2]
[422785201,1779385847000,-400.665554,0.0001,2]
[422785236,1779385847000,-151.0,0.0001,2]
[422785238,1779385847000,-177.8018764,0.0001,2]
[422785204,1779385847000,-318.883722,0.0001,2]
[422785268,1779385847000,-300.303057,0.00010046,2]
[422785203,1779385847000,-400.665562,0.0001,2]
[422785214,1779385847000,-166.824584,0.0001,2]
[422785205,1779385847000,-318.883722,0.0001,2]
[422785207,1779385847000,-318.883722,0.0001,2]
[422785208,1779385847000,-318.883722,0.0001,2]
[422785215,1779385847000,-166.824584,0.0001,2]
[422785216,1779385847000,-166.824584,0.0001,2]
[422785218,1779385847000,-166.824584,0.0001,2]
[422785217,1779385847000,-166.824584,0.0001,2]
[422785223,1779385847000,-151.0,0.0001,2]
[422785219,1779385847000,-166.824584,0.0001,2]
[422785209,1779385847000,-318.883722,0.0001,2]
[422785220,1779385847000,-166.824579,0.0001,2]
[422785222,1779385847000,-151.0,0.0001,2]
[422785235,1779385847000,-151.0,0.0001,2]
[422785231,1779385847000,-151.0,0.0001,2]
[422785232,1779385847000,-151.0,0.0001,2]
[422785230,1779385847000,-151.0,0.0001,2]
[422785233,1779385847000,-151.0,0.0001,2]
[422785234,1779385847000,-151.0,0.0001,2]
[422785229,1779385847000,-151.0,0.0001,2]
[422785227,1779385847000,-180.0,0.0001,2]
[422785228,1779385847000,-151.0,0.0001,2]
[422785226,1779385847000,-151.0,0.0001,2]
[422785224,1779385847000,-151.0,0.0001,2]
[422785221,1779385847000,-151.0,0.0001,2]
[422785225,1779385847000,-151.0,0.0001,2]
[422785310,1779385848000,-500.0,0.00010136,2]
[422785314,1779385848000,-1374.89,0.00010136,2]
[422785308,1779385848000,-500.0,0.00010136,2]
[422785309,1779385848000,-617.05,0.00010136,2]
[422785305,1779385848000,-1238.53,0.00010136,2]
[422785311,1779385848000,-500.0,0.00010136,2]
[422785307,1779385848000,-500.0,0.00010136,2]
[422785303,1779385848000,-500.0,0.00010136,2]
[422785302,1779385848000,-500.0,0.00010136,2]
[422785300,1779385848000,-151.0,0.00010136,2]
[422785304,1779385848000,-500.0,0.00010136,2]
[422785315,1779385848000,-500.0,0.00010136,2]
[422785306,1779385848000,-785.12,0.00010136,2]
[422785318,1779385848000,-652.62,0.00010136,2]
[422785336,1779385848000,-2000.0,0.00010153,2]
[422785325,1779385848000,-500.0,0.00010136,2]
[422785326,1779385848000,-500.0,0.00010136,2]
[422785323,1779385848000,-500.0,0.00010136,2]
[422785324,1779385848000,-1023.53,0.00010136,2]
[422785316,1779385848000,-500.0,0.00010136,2]
[422785317,1779385848000,-500.0,0.00010136,2]
[422785321,1779385848000,-1210.85,0.00010136,2]
[422785320,1779385848000,-500.0,0.00010136,2]
[422785322,1779385848000,-510.92,0.00010136,2]
[422785327,1779385848000,-968.84,0.00010136,2]
[422785328,1779385848000,-500.0,0.00010136,2]
[422785337,1779385848000,-2000.0,0.00010153,2]
[422785331,1779385848000,-5142.975064,0.0001014,2]
[422785313,1779385848000,-6951.41,0.00010136,2]
[422785319,1779385848000,-500.0,0.00010136,2]
[422785312,1779385848000,-736.66,0.00010136,2]
[422785283,1779385848000,-832.277642,0.00010096,2]
[422785295,1779385848000,-1350.09,0.00010136,2]
[422785270,1779385848000,-2123.185705,0.00010046,2]
[422785330,1779385848000,-160.0,0.0001014,2]
[422785271,1779385848000,-2389.127842,0.00010046,2]
[422785274,1779385848000,-160.0,0.00010088,2]
[422785273,1779385848000,-3811.218132,0.00010046,2]
[422785272,1779385848000,-10729.772236,0.00010046,2]
[422785275,1779385848000,-397.76661,0.00010088,2]
[422785277,1779385848000,-160.0,0.0001009,2]
[422785276,1779385848000,-635.53322,0.00010088,2]
[422785278,1779385848000,-3789.963053,0.0001009,2]
[422785281,1779385848000,-392.807837,0.00010096,2]
[422785285,1779385848000,-1626.74812694,0.000101,2]
[422785280,1779385848000,-998.676015,0.00010096,2]
[422785286,1779385848000,-250.0,0.000101,2]
[422785287,1779385848000,-250.0,0.000101,2]
[422785284,1779385848000,-10189.47837696,0.000101,2]
[422785282,1779385848000,-218.481496,0.00010096,2]
[422785279,1779385848000,-7419.926106,0.0001009,2]
[422785299,1779385848000,-151.0,0.00010136,2]
[422785290,1779385848000,-250.0,0.000101,2]
[422785289,1779385848000,-250.0,0.000101,2]
[422785288,1779385848000,-250.0,0.000101,2]
[422785292,1779385848000,-259.1,0.000101,2]
[422785291,1779385848000,-250.0,0.000101,2]
[422785296,1779385848000,-151.0,0.00010136,2]
[422785298,1779385848000,-151.0,0.00010136,2]
[422785294,1779385848000,-954.7167,0.00010136,2]
[422785293,1779385848000,-228.06216312,0.0001011,2]
[422785297,1779385848000,-154.564448,0.00010136,2]
[422785301,1779385848000,-523.1,0.00010136,2]
[422785269,1779385848000,-1793.109572,0.00010046,2]
[422785329,1779385848000,-228.06216312,0.00010137,2]
[422785332,1779385848000,-10125.950129,0.0001014,2]
[422785377,1779385848000,-10189.47837696,0.000104,2]
[422785375,1779385848000,-180.41906358,0.00010376,30]
[422785372,1779385848000,-180.41906358,0.00010314,30]
[422785378,1779385848000,-1626.74812694,0.000104,2]
[422785373,1779385848000,-500.0,0.00010325,2]
[422785376,1779385848000,-228.06216312,0.00010384,2]
[422785370,1779385848000,-1626.74812694,0.000103,2]
[422785371,1779385848000,-228.06216312,0.00010301,2]
[422785374,1779385848000,-228.06216312,0.00010356,2]
[422785367,1779385848000,-228.06216312,0.00010247,2]
[422785380,1779385848000,-954.7167,0.0001041,2]
[422785390,1779385848000,-617.05,0.0001041,2]
[422785381,1779385848000,-1350.09,0.0001041,2]
[422785384,1779385848000,-500.0,0.0001041,2]
[422785392,1779385848000,-500.0,0.0001041,2]
[422785379,1779385848000,-1123.639165,0.00010406,2]
[422785391,1779385848000,-500.0,0.0001041,2]
[422785389,1779385848000,-500.0,0.0001041,2]
[422785387,1779385848000,-785.12,0.0001041,2]
[422785382,1779385848000,-523.1,0.0001041,2]
[422785383,1779385848000,-500.0,0.0001041,2]
[422785386,1779385848000,-1238.53,0.0001041,2]
[422785385,1779385848000,-500.0,0.0001041,2]
[422785388,1779385848000,-497.67641086,0.0001041,2]
[422785393,1779385848000,-736.66,0.0001041,2]
[422785394,1779385848000,-6951.41,0.0001041,2]
[422785396,1779385848000,-500.0,0.0001041,2]
[422785395,1779385848000,-1374.89,0.0001041,2]
[422785334,1779385848000,-500.0,0.00010141,2]
[422785369,1779385848000,-10189.47837696,0.000103,2]
[422785368,1779385848000,-180.41906358,0.00010252,30]
[422785397,1779385848000,-639.53704225,0.0001041,2]
[422785361,1779385848000,-228.06216312,0.00010192,2]
[422785366,1779385848000,-250.0,0.000102,2]
[422785335,1779385848000,-4821.089884,0.00010149,2]
[422785338,1779385848000,-2000.0,0.00010153,2]
[422785340,1779385848000,-2000.0,0.00010153,2]
[422785341,1779385848000,-2000.0,0.00010153,2]
[422785342,1779385848000,-2000.0,0.00010153,2]
[422785345,1779385848000,-2000.0,0.00010153,2]
[422785339,1779385848000,-2000.0,0.00010153,2]
[422785344,1779385848000,-2000.0,0.00010153,2]
[422785343,1779385848000,-2000.0,0.00010153,2]
[422785350,1779385848000,-2000.0,0.00010153,2]
[422785351,1779385848000,-2000.0,0.00010153,2]
[422785347,1779385848000,-2000.0,0.00010153,2]
[422785348,1779385848000,-2000.0,0.00010153,2]
[422785333,1779385848000,-864.0,0.00010141,2]
[422785352,1779385848000,-2000.0,0.00010153,2]
[422785363,1779385848000,-10189.47837696,0.000102,2]
[422785362,1779385848000,-580.458945,0.000102,2]
[422785358,1779385848000,-160.0,0.00010191,2]
[422785359,1779385848000,-832.462254,0.00010191,2]
[422785346,1779385848000,-2000.0,0.00010153,2]
[422785356,1779385848000,-4134.40066,0.00010183,2]
[422785355,1779385848000,-3879.95551769,0.00010159,2]
[422785357,1779385848000,-378.78003351,0.00010191,2]
[422785360,1779385848000,-1504.924509,0.00010191,2]
[422785365,1779385848000,-250.0,0.000102,2]
[422785364,1779385848000,-1626.74812694,0.000102,2]
[422785354,1779385848000,-297.0,0.00010153,2]
[422785349,1779385848000,-2000.0,0.00010153,2]
[422785353,1779385848000,-2000.0,0.00010153,2]
[422785447,1779385849000,-871.043024,0.00010637,2]
[422785442,1779385849000,-1440.800056,0.00010607,2]
[422785448,1779385849000,-418.88571,0.00010637,2]
[422785441,1779385849000,-228.06216312,0.00010603,2]
[422785438,1779385849000,-348.707952,0.00010584,2]
[422785429,1779385849000,-482.09241,0.00010584,2]
[422785431,1779385849000,-335.030332,0.00010584,2]
[422785453,1779385849000,-324.207364,0.00010637,2]
[422785428,1779385849000,-371.835273,0.00010584,2]
[422785432,1779385849000,-473.597457,0.00010584,2]
[422785430,1779385849000,-2571.962413,0.00010584,2]
[422785436,1779385849000,-1718.246234,0.00010584,2]
[422785440,1779385849000,-10189.47837696,0.000106,2]
[422785445,1779385849000,-228.06216312,0.0001063,2]
[422785439,1779385849000,-780.67123,0.00010584,2]
[422785449,1779385849000,-195.132137,0.00010637,2]
[422785444,1779385849000,-429.56822837,0.00010618,2]
[422785443,1779385849000,-456.6225983,0.00010615,2]
[422785446,1779385849000,-458.188826,0.00010637,2]
[422785461,1779385849000,-1350.09,0.00010684,2]
[422785451,1779385849000,-3751.891367,0.00010637,2]
[422785462,1779385849000,-523.1,0.00010684,2]
[422785454,1779385849000,-573.795063,0.00010637,2]
[422785463,1779385849000,-428.5718259,0.00010684,2]
[422785457,1779385849000,-3433.527115,0.00010637,2]
[422785450,1779385849000,-779.364578,0.00010637,2]
[422785433,1779385849000,-518.197428,0.00010584,2]
[422785437,1779385849000,-3344.579476,0.00010584,2]
[422785427,1779385849000,-940.626431,0.00010584,2]
[422785414,1779385849000,-1658.841578,0.00010448,2]
[422785434,1779385849000,-400.107769,0.00010584,2]
[422785398,1779385849000,-500.0,0.0001041,2]
[422785399,1779385849000,-652.62,0.0001041,2]
[422785400,1779385849000,-500.0,0.0001041,2]
[422785401,1779385849000,-500.0,0.0001041,2]
[422785404,1779385849000,-500.0,0.0001041,2]
[422785403,1779385849000,-510.92,0.0001041,2]
[422785405,1779385849000,-1023.53,0.0001041,2]
[422785402,1779385849000,-1210.85,0.0001041,2]
[422785407,1779385849000,-500.0,0.0001041,2]
[422785406,1779385849000,-500.0,0.0001041,2]
[422785408,1779385849000,-968.84,0.0001041,2]
[422785419,1779385849000,-200.0,0.0001051,2]
[422785417,1779385849000,-10189.47837696,0.000105,2]
[422785435,1779385849000,-1168.210367,0.00010584,2]
[422785412,1779385849000,-342.69622079,0.00010437,30]
[422785420,1779385849000,-2316.48401798,0.00010521,2]
[422785409,1779385849000,-500.0,0.0001041,2]
[422785411,1779385849000,-500.0,0.00010415,2]
[422785421,1779385849000,-228.06216312,0.00010548,2]
[422785413,1779385849000,-228.06216312,0.00010438,2]
[422785410,1779385849000,-250.0,0.00010411,2]
[422785415,1779385849000,-228.06216312,0.00010493,2]
[422785418,1779385849000,-6559.551438,0.00010502,2]
[422785423,1779385849000,-4145.1199395,0.00010556,2]
[422785425,1779385849000,-532.285079,0.00010584,2]
[422785422,1779385849000,-8901.302996,0.00010554,2]
[422785426,1779385849000,-313.859332,0.00010584,2]
[422785424,1779385849000,-815.622682,0.00010584,2]
[422785416,1779385849000,-688.442209,0.000105,2]
[422785452,1779385849000,-1545.471406,0.00010637,2]
[422785479,1779385849000,-500.0,0.00010684,2]
[422785455,1779385849000,-679.419425,0.00010637,2]
[422785495,1779385849000,-682.946446,0.00010777,2]
[422785492,1779385849000,-10189.47837696,0.000107,2]
[422785499,1779385849000,-1323.008211,0.00010782,2]
[422785496,1779385849000,-994.084649,0.00010777,2]
[422785497,1779385849000,-1605.083553,0.00010782,2]
[422785498,1779385849000,-5094.913974,0.00010782,2]
[422785500,1779385849000,-185.746862,0.000108,2]
[422785501,1779385849000,-160.0,0.000108,3]
[422785503,1779385849000,-10189.47837696,0.000108,2]
[422785504,1779385849000,-1900.169186,0.00010831,2]
[422785502,1779385849000,-79713.52026042,0.000108,2]
[422785506,1779385849000,-845.559132,0.0001085,2]
[422785516,1779385849000,-1182.9203,0.00010958,2]
[422785493,1779385849000,-394.962493,0.00010728,2]
[422785509,1779385849000,-269.822329,0.00010885,2]
[422785507,1779385849000,-483.165098,0.00010866,2]
[422785511,1779385849000,-90500.43119851,0.000109,2]
[422785508,1779385849000,-500.0,0.00010868,2]
[422785510,1779385849000,-12981.36770249,0.0001089,2]
[422785513,1779385849000,-10189.47837696,0.000109,2]
[422785514,1779385849000,-4212.23101663,0.00010953,2]
[422785512,1779385849000,-471.5,0.000109,2]
[422785517,1779385849000,-523.1,0.00010958,2]
[422785519,1779385849000,-500.0,0.00010958,2]
[422785521,1779385849000,-785.12,0.00010958,2]
[422785518,1779385849000,-500.0,0.00010958,2]
[422785520,1779385849000,-1238.53,0.00010958,2]
[422785456,1779385849000,-764.520909,0.00010637,2]
[422785515,1779385849000,-1350.09,0.00010958,2]
[422785494,1779385849000,-1028.499175,0.00010746,2]
[422785505,1779385849000,-440.589494,0.00010831,2]
[422785486,1779385849000,-968.84,0.00010684,2]
[422785491,1779385849000,-266.328845,0.0001069,2]
[422785458,1779385849000,-1219.589802,0.00010637,2]
[422785459,1779385849000,-460.27878589,0.0001067,7]
[422785460,1779385849000,-954.7167,0.00010684,2]
[422785466,1779385849000,-1238.53,0.00010684,2]
[422785464,1779385849000,-500.0,0.00010684,2]
[422785472,1779385849000,-736.66,0.00010684,2]
[422785469,1779385849000,-617.05,0.00010684,2]
[422785474,1779385849000,-1374.89,0.00010684,2]
[422785475,1779385849000,-500.0,0.00010684,2]
[422785476,1779385849000,-500.0,0.00010684,2]
[422785468,1779385849000,-500.0,0.00010684,2]
[422785470,1779385849000,-500.0,0.00010684,2]
[422785467,1779385849000,-785.12,0.00010684,2]
[422785465,1779385849000,-500.0,0.00010684,2]
[422785471,1779385849000,-500.0,0.00010684,2]
[422785473,1779385849000,-6951.41,0.00010684,2]
[422785487,1779385849000,-500.0,0.00010684,2]
[422785482,1779385849000,-500.0,0.00010684,2]
[422785483,1779385849000,-1023.53,0.00010684,2]
[422785485,1779385849000,-500.0,0.00010684,2]
[422785480,1779385849000,-1210.85,0.00010684,2]
[422785484,1779385849000,-500.0,0.00010684,2]
[422785489,1779385849000,-3495.230972,0.0001069,2]
[422785488,1779385849000,-500.0,0.00010689,2]
[422785481,1779385849000,-510.92,0.00010684,2]
[422785490,1779385849000,-319.576325,0.0001069,2]
[422785478,1779385849000,-500.0,0.00010684,2]
[422785477,1779385849000,-652.62,0.00010684,2]
[422785555,1779385850000,-802.15535424,0.00011,5]
[422785547,1779385850000,-1653.27027607,0.00010959,2]
[422785556,1779385850000,-1000.0,0.00011,2]
[422785548,1779385850000,-500.0,0.00010963,2]
[422785550,1779385850000,-200.0,0.00010999,2]
[422785554,1779385850000,-438171.11128327,0.00011,2]
[422785553,1779385850000,-200.0,0.00010999,2]
[422785549,1779385850000,-639.45305279,0.00010998,2]
[422785551,1779385850000,-200.0,0.00010999,2]
[422785561,1779385850000,-151.0,0.00011,2]
[422785557,1779385850000,-200.0,0.00011,2]
[422785560,1779385850000,-10189.47837696,0.00011,2]
[422785559,1779385850000,-151.0,0.00011,2]
[422785558,1779385850000,-151.0,0.00011,2]
[422785562,1779385850000,-151.0,0.00011,2]
[422785564,1779385850000,-151.0,0.00011,2]
[422785563,1779385850000,-151.0,0.00011,2]
[422785544,1779385850000,-3729.42,0.00010959,2]
[422785566,1779385850000,-353.886203,0.00011062,2]
[422785552,1779385850000,-338.79426652,0.00010999,2]
[422785546,1779385850000,-15000.0,0.00010959,2]
[422785529,1779385850000,-6951.41,0.00010958,2]
[422785538,1779385850000,-500.96853491,0.00010958,2]
[422785573,1779385850000,-221.253335,0.00011175,2]
[422785527,1779385850000,-500.0,0.00010958,2]
[422785526,1779385850000,-500.0,0.00010958,2]
[422785525,1779385850000,-617.05,0.00010958,2]
[422785522,1779385850000,-500.0,0.00010958,2]
[422785528,1779385850000,-736.66,0.00010958,2]
[422785523,1779385850000,-500.0,0.00010958,2]
[422785524,1779385850000,-499.54896869,0.00010958,2]
[422785531,1779385850000,-500.0,0.00010958,2]
[422785545,1779385850000,-213.08631495,0.00010959,3]
[422785541,1779385850000,-500.0,0.00010958,2]
[422785543,1779385850000,-500.0,0.00010958,2]
[422785530,1779385850000,-1374.89,0.00010958,2]
[422785534,1779385850000,-500.0,0.00010958,2]
[422785532,1779385850000,-500.0,0.00010958,2]
[422785533,1779385850000,-652.62,0.00010958,2]
[422785537,1779385850000,-510.92,0.00010958,2]
[422785536,1779385850000,-1210.85,0.00010958,2]
[422785535,1779385850000,-500.0,0.00010958,2]
[422785539,1779385850000,-1023.53,0.00010958,2]
[422785542,1779385850000,-968.84,0.00010958,2]
[422785565,1779385850000,-239.709688,0.00011018,2]
[422785540,1779385850000,-500.0,0.00010958,2]
[422785574,1779385850000,-1898.944639,0.00011175,2]
[422785590,1779385850000,-104.18162056,0.00011232,2]
[422785612,1779385850000,-5675.334293,0.00011281,3]
[422785595,1779385850000,-500.0,0.00011232,2]
[422785591,1779385850000,-500.0,0.00011232,2]
[422785598,1779385850000,-500.0,0.00011232,2]
[422785609,1779385850000,-200.0,0.0001128,2]
[422785597,1779385850000,-652.62,0.00011232,2]
[422785610,1779385850000,-200.0,0.0001128,2]
[422785608,1779385850000,-500.0,0.00011237,2]
[422785593,1779385850000,-6951.41,0.00011232,2]
[422785602,1779385850000,-1023.53,0.00011232,2]
[422785604,1779385850000,-500.0,0.00011232,2]
[422785607,1779385850000,-3729.42,0.00011233,2]
[422785600,1779385850000,-1210.85,0.00011232,2]
[422785606,1779385850000,-415.35889112,0.00011232,2]
[422785603,1779385850000,-500.0,0.00011232,2]
[422785601,1779385850000,-510.92,0.00011232,2]
[422785611,1779385850000,-37804.89992314,0.00011281,3]
[422785613,1779385850000,-199384.27801668,0.00011281,3]
[422785568,1779385850000,-2341.48220722,0.00011073,2]
[422785605,1779385850000,-968.84,0.00011232,2]
[422785592,1779385850000,-736.66,0.00011232,2]
[422785599,1779385850000,-500.0,0.00011232,2]
[422785596,1779385850000,-269.1715516,0.00011232,2]
[422785594,1779385850000,-1374.89,0.00011232,2]
[422785567,1779385850000,-2315.410655,0.00011069,2]
[422785576,1779385850000,-188.381872,0.00011217,2]
[422785569,1779385850000,-1399.370973,0.00011119,2]
[422785570,1779385850000,-4403.944291,0.00011124,2]
[422785571,1779385850000,-1000.0,0.00011156,2]
[422785572,1779385850000,-186.304651,0.00011175,2]
[422785578,1779385850000,-307.370678,0.00011231,2]
[422785587,1779385850000,-596.97213202,0.00011232,2]
[422785589,1779385850000,-395.81837944,0.00011232,2]
[422785588,1779385850000,-617.05,0.00011232,2]
[422785577,1779385850000,-183.13524,0.00011224,2]
[422785582,1779385850000,-523.1,0.00011232,2]
[422785581,1779385850000,-982.6729,0.00011232,2]
[422785584,1779385850000,-500.0,0.00011232,2]
[422785579,1779385850000,-1389.74,0.00011232,2]
[422785583,1779385850000,-500.0,0.00011232,2]
[422785580,1779385850000,-1350.09,0.00011232,2]
[422785585,1779385850000,-1238.53,0.00011232,2]
[422785586,1779385850000,-785.12,0.00011232,2]
[422785575,1779385850000,-10189.47837696,0.000112,2]
[422785615,1779385851000,-185.0,9.019e-05,2]
[422785614,1779385851000,-500.0,8.219e-05,2]
[422785616,1779385851000,-5571.5250697,0.00011281,3]
[422785617,1779385851000,-500.0,8.219e-05,2]
[422785620,1779385851000,-4248.63857859,0.00011281,3]
[422785621,1779385851000,-13002.32151757,0.00011281,3]
[422785622,1779385851000,-3799.10997321,0.00011281,3]
[422785619,1779385851000,-24935.60000113,0.00011281,3]
[422785618,1779385851000,-500.0,8.219e-05,2]
[422785700,1779387031000,-500.0,8.214e-05,2]
[422785680,1779387031000,-300.0,8.133e-05,2]
[422785689,1779387031000,-500.0,8.214e-05,2]
[422785691,1779387031000,-139.75944242,8.214e-05,2]
[422785687,1779387031000,-500.0,8.214e-05,2]
[422785684,1779387031000,-300.0,8.133e-05,2]
[422785668,1779387031000,-5000.0,7.713e-05,2]
[422785670,1779387031000,-200.0,7.791e-05,2]
[422785698,1779387031000,-500.0,8.214e-05,2]
[422785674,1779387031000,-462.77008473,7.911e-05,2]
[422785676,1779387031000,-345.415741,8.007e-05,2]
[422785672,1779387031000,-218.97,7.791e-05,7]
[422785682,1779387031000,-300.0,8.133e-05,2]
[422785694,1779387031000,-360.24055758,8.214e-05,2]
[422785677,1779387031000,-1200.0,8.132e-05,2]
[422785696,1779387031000,-340.9599753,8.214e-05,2]
[422785702,1779387031000,-500.0,8.214e-05,2]
[422785720,1779387031000,-500.0,8.214e-05,2]
[422785719,1779387031000,-500.0,8.214e-05,2]
[422785722,1779387031000,-427.78394505,8.214e-05,2]
[422785718,1779387031000,-500.0,8.214e-05,2]
[422785708,1779387031000,-127.78394505,8.214e-05,2]
[422785721,1779387031000,-500.0,8.214e-05,2]
[422785715,1779387031000,-500.0,8.214e-05,2]
[422785713,1779387031000,-500.0,8.214e-05,2]
[422785712,1779387031000,-500.0,8.214e-05,2]
[422785710,1779387031000,-372.21605495,8.214e-05,2]
[422785706,1779387031000,-500.0,8.214e-05,2]
[422785704,1779387031000,-244.74159425,8.214e-05,2]
[422785717,1779387031000,-500.0,8.214e-05,2]
[422785728,1779387032000,-500.0,8.214e-05,2]
[422785723,1779387032000,-72.21605495,8.214e-05,2]
[422785735,1779387032000,-149.31826738,8.214e-05,2]
[422785725,1779387032000,-500.0,8.214e-05,2]
[422785724,1779387032000,-500.0,8.214e-05,2]
[422785726,1779387032000,-500.0,8.214e-05,2]
[422785732,1779387032000,-500.0,8.214e-05,2]
[422785727,1779387032000,-500.0,8.214e-05,2]
[422785731,1779387032000,-500.0,8.214e-05,2]
[422785730,1779387032000,-500.0,8.214e-05,2]
[422785734,1779387032000,-350.68173262,8.214e-05,2]
[422785729,1779387032000,-500.0,8.214e-05,2]
[422785736,1779387032000,-238.95673262,8.214e-05,2]
[422785733,1779387032000,-500.0,8.214e-05,2]
[422785749,1779387038000,-261.04326738,8.214e-05,2]
[422785750,1779387038000,-500.0,8.214e-05,2]
[422785752,1779387038000,-154.69690586,8.215e-05,2]
[422785751,1779387038000,-385.55366008,8.214e-05,2]
[422785753,1779387038000,-300.0,8.218e-05,2]
[422785756,1779387038000,-1029.95178683,8.218e-05,2]
[422785755,1779387038000,-1029.95178683,8.218e-05,2]
[422785754,1779387038000,-1029.95178683,8.218e-05,2]
[422785785,1779387039000,-500.0,8.219e-05,2]
[422785789,1779387039000,-200.43740135,8.219e-05,2]
[422785787,1779387039000,-500.0,8.219e-05,2]
[422785790,1779387039000,-503.95502753,8.219e-05,2]
[422785794,1779387039000,-675.05,8.219e-05,2]
[422785793,1779387039000,-500.0,8.219e-05,2]
[422785796,1779387039000,-504.11,8.219e-05,2]
[422785792,1779387039000,-326.70146052,8.219e-05,2]
[422785797,1779387039000,-339.28670962,8.219e-05,2]